Cogmind - Beta 13 X1 @@@ ROGUE MODE // 2023.06.29 @ 20:18:26 Player: biogoob Result: Destroyed by H-55 Commando with Gauss Rifle Performance ------------- Evolutions (2) 1000 Regions Visited (4) 800 Robots Destroyed (21) 105 Value Destroyed (426) 426 Prototype IDs (5) 100 Alien Tech Used (0) 0 Bonus (0) 0 TOTAL SCORE: 2431 Bonus ------- None Cogmind --------- Core Integrity 0/550 Matter 300/300 Energy 98/100 System Corruption 0% Temperature Cool (13) Movement Hovering (60) Location -8/Materials Parts ------- > --- POWER (1) -------- (None) > --- PROPULSION (4) --- Improved Hover Unit > --- UTILITY (4) ------ Advanced Targeting Computer Improved Power Shielding > --- WEAPON (2) ------- Particle Gun > --- INVENTORY (5) ---- Improved Ion Engine Small Storage Unit Peak State ------------ > --- POWER ------------ (None) > --- PROPULSION ------- Armored Treads Improved Hover Unit Improved Hover Unit Improved Hover Unit > --- UTILITY ---------- Small Storage Unit Improved Power Shielding Propulsion Shielding Propulsion Shielding > --- WEAPON ----------- Improved Medium Laser Improved Medium Laser > --- INVENTORY -------- Improved Hover Unit Improved Hover Unit Advanced Targeting Computer Particle Gun Assault Rifle Assault Rifle [Rating: 22] Favorites ----------- Power Ion Engine Engine Ion Engine Propulsion Aluminum Leg Treads Armored Treads Leg Aluminum Leg Wheel Wheel Hover Unit Improved Hover Unit Flight Unit Flight Unit Utility Signal Interpreter Device Seismic Detector Storage Large Storage Unit Processor Signal Interpreter Protection Propulsion Shielding Weapon Assault Rifle Energy Gun Improved Medium Laser Ballistic Gun Assault Rifle Build | -11 -10 -10 -9 -8 ------- Run | Jun Mat Min Mat Mat Slots Evolved 4 | . . . 2 2 Power . | . . . . . Propulsion 2 | . . . 1 1 Utility 2 | . . . 1 1 Weapon . | . . . . . Parts Attached 37 | . 8 1 13 15 Power 3 | . . 1 1 1 Engine 3 | . . 1 1 1 Core . | . . . . . Reactor . | . . . . . Propulsion 12 | . 1 . 6 5 Treads 1 | . . . . 1 Leg 2 | . . . 2 . Wheel 2 | . 1 . 1 . Hover 5 | . . . 3 2 Flight 2 | . . . . 2 Utility 14 | . 5 . 5 4 Device 1 | . . . 1 . Storage 6 | . 4 . 1 1 Processor 2 | . 1 . . 1 Hackware . | . . . . . Protection 5 | . . . 3 2 Artifact . | . . . . . Weapon 8 | . 2 . 1 5 Energy Gun 3 | . . . . 3 Energy Cannon . | . . . . . Ballistic Gun 5 | . 2 . 1 2 Ballistic Cannon . | . . . . . Launcher . | . . . . . Special Weapon . | . . . . . Impact Weapon . | . . . . . Slashing Weapon . | . . . . . Piercing Weapon . | . . . . . Special Melee Weapon . | . . . . . Unidentified Prototypes 1 | . . . . 1 Parts Lost 12 | . . 2 3 7 Power 2 | . . 1 1 . Propulsion 4 | . . 1 . 3 Utility 2 | . . . . 2 Weapon 4 | . . . 2 2 Highest Loss Streak 5 | . . 1 3 5 To Critical Strikes . | . . . . . Average Slot Usage (%) 90 | . 98 99 80 69 Engine 10 | . 14 13 7 . Treads 1 | . . . . 5 Leg 16 | . 27 14 16 . Wheel 5 | . . 13 6 . Hover 4 | . . . 7 18 Storage 12 | . 14 14 15 5 Processor 10 | . 12 14 6 2 Protection 4 | . . . 5 20 Energy Gun 2 | . . . . 12 Ballistic Gun 21 | . 28 28 14 1 Naked Turns 21 | . . . 19 2 Heaviest Build 40 | 11 27 29 40 19 Greatest Support 30 | 20 20 10 30 21 Greatest Overweight (x) 9 | . 2 9 3 2 Average Overweight (x) . | . . 2 1 . Largest Inventory Capacity 20 | . 20 15 15 8 Average Capacity 12 | . 12 15 11 6 Most Carried 9 | . 9 8 7 6 Average Carried 6 | . 7 7 5 4 Final Capacity 15 | 8 15 15 5 5 Final Carried 8 | 6 7 8 5 2 Class Distribution -------------------- 100% | Mutant Dominant Class ---------------- Mutant | -10/Materials Mutant | -10/Mines Mutant | -9/Materials Mutant | -8/Materials Resources | -11 -10 -10 -9 -8 ----------- Run | Jun Mat Min Mat Mat Matter Collected 707 | 200 100 101 . 306 Remotely . | . . . . . Salvage Created 539 | . 129 101 . 309 Parts 45 | . 20 8 . 17 Haulers Intercepted . | . . . . . Recyclers Shooed 1 | . . 1 . . Parts Field Recycled . | . . . . . Retrieved Matter . | . . . . . Parts Self-Destructed . | . . . . . Prevented . | . . . . . Kills | -11 -10 -10 -9 -8 ------- Run | Jun Mat Min Mat Mat Combat Hostiles Destroyed 18 | . 6 2 . 10 Guns 17 | . 6 2 . 9 Classes Destroyed 6 | . 2 2 . 2 Tunneler 1 | . . 1 . . Watcher 2 | . 2 . . . Swarmer 12 | . 6 . . 6 Grunt 4 | . . 2 . 2 Duelist 1 | . . . . 1 Sentry 1 | . . . . 1 Best Kill Streak 7 | . 6 3 . 7 Combat Bots Only 7 | . 6 2 . 7 Max Kills in Single Turn 2 | . 1 2 . 1 Gunslinging . | . . . . . Exploded . | . . . . . Melee . | . . . . . Uniques/NPCs Destroyed . | . . . . . Combat | -11 -10 -10 -9 -8 -------- Run | Jun Mat Min Mat Mat Damage Taken 2136 | . 118 286 433 1299 Core 843 | . 25 78 190 550 Absorbed by Shields . | . . . . . Redirected to Shielding 132 | . . . 16 116 Core Remaining (%) 70 | 100 . 58 52 . Volleys Fired 64 | . 14 13 5 32 Largest 2 | . 2 2 2 2 Hottest 112 | . 40 40 40 112 Shots Fired 125 | . 28 26 10 61 Gun 125 | . 28 26 10 61 Cannon . | . . . . . Launcher . | . . . . . Special . | . . . . . Kinetic 76 | . 28 26 10 12 Thermal 49 | . . . . 49 Explosive . | . . . . . Electromagnetic . | . . . . . Robot Hit Streak 18 | . 5 18 2 6 Robot Miss Streak 5 | . 3 2 4 5 Penetration Max . | . . . . . Secondary Targets 2 | . . . . 2 Max Gunslinging Chain 1 | . . . . 1 Shots Hit Robots 74 | . 14 20 5 35 Core Hits 33 | . 8 7 1 17 Critical Kills . | . . . . . Critical Parts Destroyed . | . . . . . Critical Strikes 3 | . . . . 3 Burn 3 | . . . . 3 Melee Attacks . | . . . . . Impact . | . . . . . Slashing . | . . . . . Piercing . | . . . . . Sneak Attacks . | . . . . . Combat Hostiles . | . . . . . Follow-up Attacks . | . . . . . Damage Inflicted 1140 | . 165 248 73 654 Guns 1070 | . 165 248 65 592 Cannons . | . . . . . Explosions . | . . . . . Melee . | . . . . . Ramming 70 | . . . 8 62 Kinetic 568 | . 165 248 65 90 Thermal 502 | . . . . 502 Explosive . | . . . . . Electromagnetic . | . . . . . Impact . | . . . . . Slashing . | . . . . . Piercing . | . . . . . Highest Corruption . | . . . . . Average Corruption . | . . . . . Corruption Purged . | . . . . . Corruption Blocked . | . . . . . Overload Shots . | . . . . . Overflow Damage . | . . . . . Projectiles . | . . . . . Explosions . | . . . . . Melee . | . . . . . Knockbacks . | . . . . . Impact . | . . . . . Kinetic . | . . . . . Secondary . | . . . . . Self-Inflicted Damage 31 | . . . 4 27 Shots . | . . . . . Rammed 17 | . . . 2 15 Targets Rammed 17 | . . . 2 15 Kicked . | . . . . . Crushed . | . . . . . Highest Temperature 337 | . . 2 . 337 Average Temperature 151 | . . 2 . 152 Received Heat Transfer 663 | . . 165 147 351 Siege Activations . | . . . . . Robots Corrupted . | . . . . . Combat Hostiles . | . . . . . Parts Fried . | . . . . . Impact Corruptions . | . . . . . Robots Melted 1 | . . . . 1 Combat Hostiles 1 | . . . . 1 Parts Melted 5 | . . . . 5 Heat Transferred 1295 | . . . . 1295 Parts Sabotaged . | . . . . . Parts Stolen . | . . . . . Parts Stripped . | . . . . . Power Chain Reactions . | . . . . . Missiles Intercepted . | . . . . . Alert | -11 -10 -10 -9 -8 ------- Run | Jun Mat Min Mat Mat Peak Influence 273 | . 130 78 40 273 Initial 33 | . . 33 . 14 Average 58 | . 37 59 15 124 Maximum Alert Level 1 | . . . . 1 Low Security (%) 97 | . 100 100 100 84 Level 1 2 | . . . . 15 Level 2 . | . . . . . Level 3 . | . . . . . Level 4 . | . . . . . Level 5 . | . . . . . High Security . | . . . . . Max Security . | . . . . . Squads Dispatched 2 | . . . 1 1 Investigation . | . . . . . Extermination . | . . . . . Reinforcement 2 | . . . 1 1 Assault . | . . . . . Garrison . | . . . . . Intercept . | . . . . . Searches Triggered . | . . . . . Construction Impeded . | . . . . . Haulers Reinforced . | . . . . . Active Scanning Responses . | . . . . . Cargo Convoy Interrupts . | . . . . . Stealth | -11 -10 -10 -9 -8 --------- Run | Jun Mat Min Mat Mat Distress Signals 4 | . . . 2 2 Communications Jammed . | . . . . . Distress Signals . | . . . . . Times Spotted 56 | . 10 4 16 26 Peak Tracking Total 11 | . 5 2 11 10 Tactical Retreats 2 | . . . 1 1 Traps | -11 -10 -10 -9 -8 ------- Run | Jun Mat Min Mat Mat Traps Triggered . | . . . . . Indirectly . | . . . . . Trap Hack Attempts . | . . . . . Triggered . | . . . . . Disarmed . | . . . . . Reprogrammed . | . . . . . Reused . | . . . . . Traps Extracted . | . . . . . Installed . | . . . . . Triggered . | . . . . . Machines | -11 -10 -10 -9 -8 ---------- Run | Jun Mat Min Mat Mat Machines Disabled . | . . . . . Max in Single Turn . | . . . . . Machines Repaired . | . . . . . Machines Sabotaged . | . . . . . Overloaded Fab Kills . | . . . . . Hacking | -11 -10 -10 -9 -8 --------- Run | Jun Mat Min Mat Mat Machines Accessed 9 | . 4 1 2 2 Terminals 6 | . 3 . 1 2 Fabricators . | . . . . . Repair Stations . | . . . . . Recycling Units 2 | . 1 . 1 . Scanalyzers . | . . . . . Garrison Access . | . . . . . Total Hacks 25 | . 11 1 5 8 Successful 11 | . 6 1 2 2 Failed 14 | . 5 . 3 6 Catastrophic 3 | . . . 2 1 Database Lockouts . | . . . . . Manual 14 | . 3 . 3 8 Terminals 19 | . 8 . 3 8 Fabricators . | . . . . . Repair Stations . | . . . . . Recycling Units 5 | . 3 . 2 . Scanalyzers . | . . . . . Garrison Access . | . . . . . Terminal Hacks 6 | . 4 1 . 1 Prototype ID Bank 2 | . 2 . . . Open Door 1 | . . 1 . . Locate Traps 1 | . 1 . . . Zone Layout 2 | . 1 . . 1 Fabricator Hacks . | . . . . . Repair Station Hacks . | . . . . . Recycling Unit Hacks 2 | . 1 . 1 . Report Inventory 2 | . 1 . 1 . Scanalyzer . | . . . . . Garrison Access Hacks . | . . . . . Unauthorized Hacks 3 | . 1 . 1 1 Terminals 3 | . 1 . 1 1 Track 1 | . . . . 1 Botnet 1 | . . . 1 . Operators 1 | . 1 . . . Fabricators . | . . . . . Repair Stations . | . . . . . Recycling Units . | . . . . . Scanalyzers . | . . . . . Garrison Access . | . . . . . Data Cores Recovered . | . . . . . Used . | . . . . . Hacking Detections 8 | . 4 . 2 2 Full Trace Events 2 | . 1 . . 1 Feedback Events . | . . . . . Feedback Blocked . | . . . . . Robot Schematics Acquired . | . . . . . Robots Built . | . . . . . Authchips . | . . . . . Time . | . . . . . Total Robot Build Rating . | . . . . . Part Schematics Acquired . | . . . . . Parts Built . | . . . . . Authchips . | . . . . . Time . | . . . . . Total Part Build Rating . | . . . . . Parts Repaired . | . . . . . Time . | . . . . . Parts Recycled . | . . . . . Recycled Matter . | . . . . . Retrieved Matter . | . . . . . Retrieved Components . | . . . . . Parts Scanalyzed . | . . . . . Part Schematics Acquired . | . . . . . Parts Damaged . | . . . . . Bothacking | -11 -10 -10 -9 -8 ------------ Run | Jun Mat Min Mat Mat Used RIF Installer . | . . . . . Robots Hacked . | . . . . . Non-combat . | . . . . . Combat . | . . . . . Robot Hacks Applied . | . . . . . Relay Couplers Released . | . . . . . Fabnet Peak Effective % . | . . . . . Robots Rewired . | . . . . . Allies Hacked . | . . . . . Hacks Repelled . | . . . . . Allies | -11 -10 -10 -9 -8 -------- Run | Jun Mat Min Mat Mat Total Allies . | . . . . . Largest Group . | . . . . . Highest-Rated Group . | . . . . . Highest-Rated Ally . | . . . . . Total Orders . | . . . . . Ally Attacks . | . . . . . Total Damage . | . . . . . Kills . | . . . . . Allies Corrupted . | . . . . . Allies Melted . | . . . . . Intel | -11 -10 -10 -9 -8 ------- Run | Jun Mat Min Mat Mat Robot Analysis Total . | . . . . . Derelict Logs Recovered . | . . . . . Drone Launches . | . . . . . Drone Recoveries . | . . . . . Exploration | -11 -10 -10 -9 -8 ------------- Run | Jun Mat Min Mat Mat Turns Passed 1526 | . 520 492 217 297 Spaces Moved 817 | 1 286 158 183 189 Core 92 | . . 2 37 53 Treads 48 | . . . . 48 Legs 294 | 1 281 2 10 . Wheels 243 | . 5 154 84 . Hover 140 | . . . 52 88 Flight . | . . . . . Fastest Speed 50 | 120 110 110 50 50 Average Speed 119 | 120 160 116 92 85 Slowest Speed 500 | 120 190 500 190 170 Overloaded Moves . | . . . . . Propulsion Burnouts . | . . . . . Robots Hopped . | . . . . . Cave-ins Triggered . | . . . . . Exploration Rate (%) 26 | 2 48 25 33 22 Regions Visited 4 Branch Regions 1 Pre-discovered Areas 1 | . . 1 . . Known Exits Taken 2 | . 1 1 . . Unknown Exits Taken 2 | 1 . . 1 . Scrap Searched . | . . . . . Spaces Dug . | . . . . . Terrain Destroyed . | . . . . . Melee . | . . . . . Projectile . | . . . . . AOE . | . . . . . Terrain Rammed . | . . . . . Walls Destroyed . | . . . . . Machines Disabled . | . . . . . Actions | -11 -10 -10 -9 -8 --------- Run | Jun Mat Min Mat Mat Total 1235 | . 318 440 217 260 Wait 280 | . 1 268 9 2 Move 813 | . 285 157 182 189 Hop . | . . . . . Pick Up 12 | . 5 1 2 4 Fast Attach 20 | . 1 1 9 9 Attach 11 | . 1 . 4 6 Detach 2 | . . . 2 . Swap 6 | . 6 . . . Drop 10 | . 5 . 2 3 Fire 64 | . 14 13 5 32 Melee . | . . . . . Ram 17 | . . . 2 15 Kick . | . . . . . Crush . | . . . . . Escape Stasis . | . . . . . Rewire . | . . . . . Trap . | . . . . . Miscellaneous . | . . . . . Route ------- -11/Junkyard -10/Materials -10/Mines -9/Materials -8/Materials History --------- Turn | Location | Event 1 | -11/Junkyard | Discovered new exit (range 0) 1 | -11/Junkyard | Entered Materials 309 | -10/Materials | Build established: Mutant 414 | -10/Materials | Discovered new exit (range 16) 465 | -10/Materials | Identified exit to Mines 521 | -10/Materials | Entered Mines 606 | -10/Mines | Assembled infested the area 646 | -10/Mines | Learned location of Storage (-7) 980 | -10/Mines | Found the Drone Emporium 997 | -10/Mines | Discovered new exit (range 7) 1010 | -10/Mines | Identified exit to Materials 1013 | -10/Mines | Entered Materials 1013 | -9/Materials | Evolved 2 slots: Propulsion x1, Utility x1 1160 | -9/Materials | Released all parts (8) 1198 | -9/Materials | Lost 3 parts (1p2w) 1228 | -9/Materials | Discovered new exit (range 4) 1230 | -9/Materials | Entered another Materials area 1230 | -8/Materials | Evolved 2 slots: Propulsion x1, Utility x1 1435 | -8/Materials | Destroyed 7 combat bots 1437 | -8/Materials | Lost 5 parts (2n2u1w) 1450 | -8/Materials | Released all parts (8) 1461 | -8/Materials | Core integrity fell below 50% 1504 | -8/Materials | Core integrity fell below 20% 1527 | -8/Materials | Destroyed by H-55 Commando with Gauss Rifle Last Messages --------------- 01496_ Acquired 13 matter. 01496_ Slug penetrates Wall. 01496_ Assault Rifle destroyed. 01500_ Acquired Flight Unit. 01500_ K-01 Serf collects debris. 01503_ Slammed into G-47 Trooper. 01504_ Slammed into K-01 Serf. 01506_ Slammed into A-02 Transporter. 01507_ Slammed into R-06 Scavenger. 01508_ Slammed into A-02 Transporter. 01513_ K-01 Serf collects debris. 01514_ Slammed into K-01 Serf. 01516_ Slammed into S-10 Pest. 01516_ Destabilizing: Core damaged (-11). 01517_ Slammed into S-10 Pest. 01519_ Slammed into G-47 Trooper. 01523_ Flight Unit destroyed. 01524_ Slug penetrates Wall. 01527_ Slammed into K-01 Serf. 01527_ Slug penetrates Wall. Map ----- +----------------------------------------------------+ | ?????????????????????????????????????????????????? | | ?????????????????????????????????????????????????? | | ?????????????????????????????????????????????????? | | ?????????????????????????????????????????????????? | | ?????????????????????????????????????????????????? | | ?????????????????????????????????????????????????? | | ?????????????????????????????????????????????????? | | ?????????????????????????????????????????????????? | | ?????????????????????????????????????????????????? | | ?????????????????????????????????????????????????? | | ?????????????????????????????????????????????????? | | ?????????????????????????????????????????????????? | | ?????????????????????????????????????????????????? | | ?????????????????????????????????????????????????? | | ?????????????????????????????????????????????????? | | ?????????????????????????????????????????????????? | | ???????????????###########???????????????????????? | | ???????????????# #???????????????????????? | | ???????????????# #???????????????????????? | | ???????????????# #???????????????????????? | | ???????????????# %% #???????????????????????? | | ???????????????#######/###???????????????????????? | | ???????????????# ?#%#?????????????????????????? | | ???????????????# #%#?????????????????????????? | | ???????????????# #h########u #??????????? | | ???????????????# ggg @ k #??????????? | | ???????????????# # ######## #?????????????? | | ???????????????# # #?????????????????????????? | | ???????????????# ?# #?????????????????????????? | | ???????????????#####?# #?????????????????????????? | | ????????????##???????# #?????????????????????????? | | ??????????? ???????# #?????????????????????????? | | ??????????? "??????# #?????????????????????????? | | ??????????? ""?????# #?????????????????????????? | | ??????????# ""?????# #?????????????????????????? | | ??????????? ?????# #?????????????????????????? | | ???????????? ?????# #?????????????????????????? | | ???????????? ?????#*#?????????????????????????? | | ?????????????Y" ?????# #?????????????????????????? | | ??????????????" ?????#[#?????????????????????????? | | ?????????????##/######+##????????????????????????? | | ?????????????# + % #????????????????????????? | | ?????????????# # #????????????????????????? | | ?????????????# # * """#????????????????????????? | | ?????????????# + """#????????????????????????? | | ?????????????# # """#????????????????????????? | | ?????????????# # #????????????????????????? | | ?????????????# ###############?????????????????? | | ?????????????# # """ """ #?????????????????? | | ?????????????# # """"""""" #?????????????????? | +----------------------------------------------------+ Best States ------------- Heat Dissipation 31 Energy Generation 12 Energy Capacity 265 Matter Stores 300 Matter Capacity 300 Sight Range 16 Terrain Scan Density 10 Power Shielding 66 Propulsion Shielding 33 Evasion (%) 55 Targeting Accuracy 8 Recoil Reduction 1 Item Schematics ----------------- None Robot Schematics ------------------ None Fabricated ------------ Nothing Alien Tech Used ----------------- None Achievements -------------- None Challenges ------------ None Game ------ Seed UtilityMassWell Manual? 0 Play Time 00:18:02 Cumulative 112.5 hours Start 2023.06.29 @ 18:30:56 End 2023.06.29 @ 20:18:26 Sessions 3 Manual Loads 0 Difficulty Rogue Special Mode None Game No. 133 Rogue 110 Adventurer 19 Explorer 4 Win Type - Total 1 Types 0/0/1/0/0/0/0/0/0 Lore% 48 Gallery% 51 Achievement% 46 Wizard Run 0 Options --------- ASCII 1 Keyboard 1 Movement Vi Keybinds 0 Fullscreen 2 Font 18/Terminus Map View 76x50 Tactical HUD 1 Map Filters SATURATION(80) Filters SATURATION(80) Steam 1 RUN: 89e47400-8261-40cf-ac05-00cc83bef9d8